[Event "*** Titled Tuesday 3|2 Blitz (Early)"]
[Site "Chess.com"]
[Date "2016.11.01"]
[Round "4"]
[White "fireheart92"]
[Black "MFBerna"]
[Result "1-0"]
[WhiteElo "2514"]
[BlackElo "2185"]
[TimeControl "180+2"]
[EndTime "11:47:54 PDT"]
[Termination "fireheart92 won by resignation"]

1. e4 {[%clk 0:03:02]} 1... e5 {[%clk 0:03:01.2]} 2. Nf3 {[%clk 0:03:03.4]} 2...
Nc6 {[%clk 0:03:02.6]} 3. Bb5 {[%clk 0:03:04.6]} 3... a6 {[%clk 0:03:03.8]} 4.
Ba4 {[%clk 0:03:05.8]} 4... Nf6 {[%clk 0:03:05.1]} 5. O-O {[%clk 0:03:07]} 5...
Be7 {[%clk 0:03:06]} 6. d3 {[%clk 0:03:07.9]} 6... b5 {[%clk 0:03:07.3]} 7. Bb3
{[%clk 0:03:09.3]} 7... O-O {[%clk 0:03:08.7]} 8. Nc3 {[%clk 0:03:10.1]} 8... d6
{[%clk 0:03:08]} 9. a3 {[%clk 0:03:11.4]} 9... Na5 {[%clk 0:03:07.7]} 10. Ba2
{[%clk 0:03:12.5]} 10... c5 {[%clk 0:03:08.8]} 11. Nd5 {[%clk 0:03:10.2]} 11...
Nxd5 {[%clk 0:03:02.1]} 12. Bxd5 {[%clk 0:03:10.6]} 12... Bb7 {[%clk 0:03:00.9]}
13. Ba2 {[%clk 0:03:02.5]} 13... Nc6 {[%clk 0:03:00.9]} 14. h3 {[%clk
0:02:55.3]} 14... Nd4 {[%clk 0:02:59.3]} 15. Nxd4 {[%clk 0:02:49.2]} 15... cxd4
{[%clk 0:02:59.8]} 16. f4 {[%clk 0:02:50.4]} 16... Bf6 {[%clk 0:02:36.9]} 17.
Qf3 {[%clk 0:02:44.5]} 17... Rc8 {[%clk 0:02:23]} 18. Bb3 {[%clk 0:02:45.7]}
18... a5 {[%clk 0:02:05]} 19. a4 {[%clk 0:02:46.6]} 19... Bc6 {[%clk 0:01:53.9]}
20. axb5 {[%clk 0:02:35.7]} 20... Bxb5 {[%clk 0:01:54.8]} 21. Rf2 {[%clk
0:02:37.3]} 21... Rc5 {[%clk 0:01:33.6]} 22. fxe5 {[%clk 0:02:11.1]} 22... dxe5
{[%clk 0:01:20.5]} 23. Qg4 {[%clk 0:02:11.4]} 23... Bd7 {[%clk 0:01:05.6]} 24.
Qf3 {[%clk 0:02:09.7]} 24... Be6 {[%clk 0:01:02.5]} 25. Bxe6 {[%clk 0:02:04]}
25... fxe6 {[%clk 0:01:03.7]} 26. Qg4 {[%clk 0:01:50.6]} 26... Qe7 {[%clk
0:00:44.6]} 27. b3 {[%clk 0:01:51.3]} 27... Rfc8 {[%clk 0:00:20]} 28. Ba3 {[%clk
0:01:49.5]} 28... Qd7 {[%clk 0:00:13.4]} 29. Bxc5 {[%clk 0:01:47.5]} 29... Rxc5
{[%clk 0:00:15.3]} 30. Rxf6 {[%clk 0:01:48.7]} 1-0

[Event "*** Titled Tuesday 3|2 Blitz (Early)"]
[Site "Chess.com"]
[Date "2016.11.01"]
[Round "4"]
[White "GMBenjaminBok"]
[Black "Zaven_ChessMood"]
[Result "0-1"]
[WhiteElo "2597"]
[BlackElo "2639"]
[TimeControl "180+2"]
[EndTime "11:48:44 PDT"]
[Termination "Zaven_ChessMood won by resignation"]

1. d4 {[%clk 0:03:02]} 1... Nf6 {[%clk 0:03:00]} 2. c4 {[%clk 0:03:02.9]} 2...
c5 {[%clk 0:03:01]} 3. d5 {[%clk 0:03:01.9]} 3... b5 {[%clk 0:02:59.8]} 4. cxb5
{[%clk 0:03:02.5]} 4... a6 {[%clk 0:03:01.1]} 5. bxa6 {[%clk 0:03:03.4]} 5... g6
{[%clk 0:03:01.6]} 6. Nc3 {[%clk 0:03:04.4]} 6... Bg7 {[%clk 0:03:02.2]} 7. e4
{[%clk 0:03:04.8]} 7... O-O {[%clk 0:03:01.6]} 8. a7 {[%clk 0:03:06]} 8... Rxa7
{[%clk 0:03:00.4]} 9. Nf3 {[%clk 0:03:07.1]} 9... d6 {[%clk 0:02:53.2]} 10. Be2
{[%clk 0:03:00.6]} 10... Bg4 {[%clk 0:02:46.9]} 11. Nd2 {[%clk 0:02:49.3]} 11...
Bxe2 {[%clk 0:02:47.2]} 12. Qxe2 {[%clk 0:02:51.2]} 12... Nbd7 {[%clk
0:02:41.9]} 13. O-O {[%clk 0:02:51.5]} 13... Qa5 {[%clk 0:02:38.7]} 14. Nb5
{[%clk 0:02:26.7]} 14... Rb7 {[%clk 0:02:36.9]} 15. a4 {[%clk 0:02:27.3]} 15...
Nb6 {[%clk 0:02:36.6]} 16. Nc4 {[%clk 0:02:17.9]} 16... Nxc4 {[%clk 0:02:34.3]}
17. Qxc4 {[%clk 0:02:19.8]} 17... Nd7 {[%clk 0:02:33.4]} 18. Ra3 {[%clk
0:01:53.8]} 18... Ra8 {[%clk 0:02:30]} 19. Qc2 {[%clk 0:01:49.7]} 19... Nb6
{[%clk 0:02:19.5]} 20. Bd2 {[%clk 0:01:36.9]} 20... Qa6 {[%clk 0:02:17.1]} 21.
b3 {[%clk 0:01:24]} 21... Nxd5 {[%clk 0:02:14.8]} 22. Nxd6 {[%clk 0:00:55]}
22... Nb4 {[%clk 0:01:55]} 23. Bxb4 {[%clk 0:00:40.8]} 23... cxb4 {[%clk
0:01:53.9]} 24. Nxb7 {[%clk 0:00:40]} 24... bxa3 {[%clk 0:01:54.1]} 25. Nc5
{[%clk 0:00:33.7]} 25... Qb6 {[%clk 0:01:52.4]} 26. Rc1 {[%clk 0:00:31.2]} 26...
Rc8 {[%clk 0:01:48.9]} 27. Qc4 {[%clk 0:00:08.4]} 27... a2 {[%clk 0:01:44.4]}
28. b4 {[%clk 0:00:09.6]} 28... a1=Q {[%clk 0:01:41.3]} 29. Rxa1 {[%clk
0:00:11.2]} 29... Bxa1 {[%clk 0:01:42.2]} 30. a5 {[%clk 0:00:12.9]} 30... Qc6
{[%clk 0:01:40]} 31. g3 {[%clk 0:00:13.9]} 31... Be5 {[%clk 0:01:39.2]} 32. Qd3
{[%clk 0:00:09.6]} 32... Bd6 {[%clk 0:01:39.1]} 33. Na6 {[%clk 0:00:10.6]} 33...
Qc4 {[%clk 0:01:33]} 34. Qxc4 {[%clk 0:00:09.4]} 34... Rxc4 {[%clk 0:01:33.7]}
35. b5 {[%clk 0:00:11.3]} 35... Ra4 {[%clk 0:01:34.2]} 0-1

[Event "*** Titled Tuesday 3|2 Blitz (Early)"]
[Site "Chess.com"]
[Date "2016.11.01"]
[Round "4"]
[White "VMikhalevski"]
[Black "Evgeny_Levin"]
[Result "0-1"]
[WhiteElo "2512"]
[BlackElo "2694"]
[TimeControl "180+2"]
[EndTime "11:48:47 PDT"]
[Termination "Evgeny_Levin won by resignation"]

1. Nf3 {[%clk 0:03:01.9]} 1... Nf6 {[%clk 0:02:59.7]} 2. g3 {[%clk 0:03:02.6]}
2... g6 {[%clk 0:02:59.6]} 3. b3 {[%clk 0:03:03.8]} 3... Bg7 {[%clk 0:03:00.9]}
4. Bb2 {[%clk 0:03:05.4]} 4... O-O {[%clk 0:03:01.6]} 5. Bg2 {[%clk 0:03:07]}
5... b6 {[%clk 0:02:58.2]} 6. Ne5 {[%clk 0:03:05.2]} 6... d5 {[%clk 0:02:55.5]}
7. d4 {[%clk 0:03:04.9]} 7... Bb7 {[%clk 0:02:53.7]} 8. c4 {[%clk 0:03:04.3]}
8... c5 {[%clk 0:02:44.5]} 9. dxc5 {[%clk 0:02:58.6]} 9... Ng4 {[%clk
0:02:40.6]} 10. c6 {[%clk 0:02:43.1]} 10... Ba6 {[%clk 0:01:52.5]} 11. Nxf7
{[%clk 0:02:13.3]} 11... Rxf7 {[%clk 0:01:48.8]} 12. Bxg7 {[%clk 0:02:11.2]}
12... Kxg7 {[%clk 0:01:47.5]} 13. c7 {[%clk 0:01:26.9]} 13... Qxc7 {[%clk
0:01:44.6]} 14. Qxd5 {[%clk 0:01:27.5]} 14... Rxf2 {[%clk 0:01:30.7]} 15. Nc3
{[%clk 0:00:48.4]} 15... Rxg2 {[%clk 0:01:20.2]} 16. Qxg2 {[%clk 0:00:48.5]}
16... Bb7 {[%clk 0:01:21.3]} 17. Nd5 {[%clk 0:00:46.8]} 17... Qe5 {[%clk
0:01:22.4]} 18. O-O {[%clk 0:00:44.4]} 18... Ne3 {[%clk 0:01:18.9]} 19. Qf3
{[%clk 0:00:42.4]} 19... Nxf1 {[%clk 0:01:19.2]} 20. Rxf1 {[%clk 0:00:43.1]}
20... Nd7 {[%clk 0:01:08.6]} 21. Qf7+ {[%clk 0:00:33.6]} 21... Kh8 {[%clk
0:01:08.5]} 22. Qxe7 {[%clk 0:00:14]} 22... Qxe7 {[%clk 0:01:05.2]} 23. Nxe7
{[%clk 0:00:15.5]} 23... Kg7 {[%clk 0:00:57.8]} 24. Rd1 {[%clk 0:00:14.1]} 24...
Nf6 {[%clk 0:00:55.1]} 25. Rd6 {[%clk 0:00:12.9]} 25... Re8 {[%clk 0:00:53.9]}
26. Nd5 {[%clk 0:00:13.5]} 26... Bxd5 {[%clk 0:00:53.8]} 27. cxd5 {[%clk
0:00:14.6]} 27... Rxe2 {[%clk 0:00:54.7]} 28. a4 {[%clk 0:00:15.7]} 28... Rd2
{[%clk 0:00:54.5]} 29. a5 {[%clk 0:00:15.6]} 29... Rxd5 {[%clk 0:00:52.5]} 0-1

[Event "*** Titled Tuesday 3|2 Blitz (Early)"]
[Site "Chess.com"]
[Date "2016.11.01"]
[Round "4"]
[White "maciek_92"]
[Black "Cayse"]
[Result "0-1"]
[WhiteElo "2545"]
[BlackElo "2605"]
[TimeControl "180+2"]
[EndTime "11:49:11 PDT"]
[Termination "Cayse won by checkmate"]

1. c4 {[%clk 0:03:01.9]} 1... Nf6 {[%clk 0:03:00.2]} 2. g3 {[%clk 0:03:01.7]}
2... e5 {[%clk 0:02:59.5]} 3. Bg2 {[%clk 0:02:58]} 3... g6 {[%clk 0:02:59.4]} 4.
Nc3 {[%clk 0:02:58.9]} 4... Bg7 {[%clk 0:03:00]} 5. Nf3 {[%clk 0:02:59.4]} 5...
Nc6 {[%clk 0:02:58.9]} 6. O-O {[%clk 0:02:59.8]} 6... O-O {[%clk 0:02:59.3]} 7.
d4 {[%clk 0:02:58.2]} 7... d6 {[%clk 0:02:57.5]} 8. d5 {[%clk 0:02:50.3]} 8...
Ne7 {[%clk 0:02:57.7]} 9. Ne1 {[%clk 0:02:50.4]} 9... Nh5 {[%clk 0:02:56.8]} 10.
e4 {[%clk 0:02:49.6]} 10... Bd7 {[%clk 0:02:50.9]} 11. Nd3 {[%clk 0:02:45.3]}
11... f5 {[%clk 0:02:46.8]} 12. exf5 {[%clk 0:02:41.6]} 12... Bxf5 {[%clk
0:02:47.1]} 13. Ne4 {[%clk 0:02:35.5]} 13... Qd7 {[%clk 0:02:47.6]} 14. c5
{[%clk 0:01:57.4]} 14... Rad8 {[%clk 0:02:14.5]} 15. cxd6 {[%clk 0:01:54.5]}
15... cxd6 {[%clk 0:02:15.2]} 16. Be3 {[%clk 0:01:44.7]} 16... b6 {[%clk
0:02:08.7]} 17. Rc1 {[%clk 0:01:41.6]} 17... Kh8 {[%clk 0:01:59.2]} 18. Nb4
{[%clk 0:01:36.7]} 18... Bh3 {[%clk 0:01:57.7]} 19. Bxh3 {[%clk 0:01:32.6]}
19... Qxh3 {[%clk 0:01:57.7]} 20. Ng5 {[%clk 0:01:33.8]} 20... Qd7 {[%clk
0:01:35]} 21. Ne6 {[%clk 0:01:33.7]} 21... Rc8 {[%clk 0:01:35.7]} 22. Nxf8
{[%clk 0:01:33]} 22... Rxf8 {[%clk 0:01:36.8]} 23. Bg5 {[%clk 0:00:57.5]} 23...
Nf5 {[%clk 0:01:26]} 24. Nc6 {[%clk 0:00:55]} 24... h6 {[%clk 0:01:25.8]} 25.
Be3 {[%clk 0:00:52.3]} 25... Kh7 {[%clk 0:01:21.7]} 26. a4 {[%clk 0:00:48.9]}
26... Nf6 {[%clk 0:01:19.8]} 27. a5 {[%clk 0:00:36.8]} 27... bxa5 {[%clk
0:01:19.9]} 28. Ra1 {[%clk 0:00:34]} 28... e4 {[%clk 0:00:50.1]} 29. Rxa5 {[%clk
0:00:34]} 29... Nh4 {[%clk 0:00:51.4]} 30. gxh4 {[%clk 0:00:19.4]} 30... Qh3
{[%clk 0:00:52.7]} 31. Bf4 {[%clk 0:00:20.6]} 31... Nh5 {[%clk 0:00:48.8]} 32.
Bxd6 {[%clk 0:00:19.7]} 32... Rf4 {[%clk 0:00:42.6]} 33. Ra3 {[%clk 0:00:19.8]}
33... Rg4+ {[%clk 0:00:41.6]} 34. Kh1 {[%clk 0:00:20.2]} 34... Qg2# {[%clk
0:00:42]} 0-1

[Event "*** Titled Tuesday 3|2 Blitz (Early)"]
[Site "Chess.com"]
[Date "2016.11.01"]
[Round "4"]
[White "darsen_sanzhaev"]
[Black "MateusViageiro"]
[Result "1-0"]
[WhiteElo "2288"]
[BlackElo "2289"]
[TimeControl "180+2"]
[EndTime "11:49:17 PDT"]
[Termination "darsen_sanzhaev won by checkmate"]

1. d4 {[%clk 0:02:48]} 1... Nf6 {[%clk 0:03:00.2]} 2. c4 {[%clk 0:02:49.4]} 2...
e6 {[%clk 0:03:00.9]} 3. g3 {[%clk 0:02:50.7]} 3... d5 {[%clk 0:03:01.2]} 4. Bg2
{[%clk 0:02:51.7]} 4... Nbd7 {[%clk 0:03:02.1]} 5. Nf3 {[%clk 0:02:50.5]} 5...
c6 {[%clk 0:03:03.3]} 6. O-O {[%clk 0:02:51.1]} 6... dxc4 {[%clk 0:03:03.6]} 7.
Nbd2 {[%clk 0:02:41.5]} 7... b5 {[%clk 0:03:03.8]} 8. e4 {[%clk 0:02:36.4]} 8...
Bb7 {[%clk 0:03:03.5]} 9. a4 {[%clk 0:02:32.1]} 9... a6 {[%clk 0:03:03.9]} 10.
Qe2 {[%clk 0:02:28.9]} 10... Be7 {[%clk 0:03:03.5]} 11. e5 {[%clk 0:02:29.8]}
11... Nd5 {[%clk 0:03:03.8]} 12. Ne4 {[%clk 0:02:31.3]} 12... O-O {[%clk
0:03:02.6]} 13. Bg5 {[%clk 0:02:30.1]} 13... c5 {[%clk 0:02:52.7]} 14. Nd6
{[%clk 0:01:57.7]} 14... Bc6 {[%clk 0:02:42.2]} 15. axb5 {[%clk 0:01:57.5]}
15... axb5 {[%clk 0:02:36.9]} 16. Bxe7 {[%clk 0:01:39.9]} 16... Qxe7 {[%clk
0:02:32.1]} 17. dxc5 {[%clk 0:01:38.2]} 17... Nxc5 {[%clk 0:02:29.8]} 18. Nd4
{[%clk 0:01:36.9]} 18... Qd7 {[%clk 0:02:27.6]} 19. Rfd1 {[%clk 0:01:01.4]}
19... c3 {[%clk 0:02:17.4]} 20. Nxc6 {[%clk 0:00:52.8]} 20... Rxa1 {[%clk
0:02:12.1]} 21. Rxa1 {[%clk 0:00:50.7]} 21... cxb2 {[%clk 0:02:11.9]} 22. Qxb2
{[%clk 0:00:45.9]} 22... Qxc6 {[%clk 0:02:10.2]} 23. Ra7 {[%clk 0:00:38.5]}
23... Na4 {[%clk 0:02:06.9]} 24. Qxb5 {[%clk 0:00:34.5]} 24... Qc1+ {[%clk
0:02:07.5]} 25. Bf1 {[%clk 0:00:32.3]} 25... Nac3 {[%clk 0:02:08.4]} 26. Qd3
{[%clk 0:00:25]} 26... h5 {[%clk 0:02:00.1]} 27. Qf3 {[%clk 0:00:25.3]} 27... h4
{[%clk 0:01:25.2]} 28. Rxf7 {[%clk 0:00:23.4]} 28... Ne2+ {[%clk 0:01:23.2]} 29.
Qxe2 {[%clk 0:00:21]} 29... Rxf7 {[%clk 0:01:24.3]} 30. Nxf7 {[%clk 0:00:21.5]}
30... Kxf7 {[%clk 0:01:24.7]} 31. Qh5+ {[%clk 0:00:21.5]} 31... Kg8 {[%clk
0:01:25.1]} 32. Qe8+ {[%clk 0:00:21.3]} 32... Kh7 {[%clk 0:01:25.6]} 33. Qxe6
{[%clk 0:00:22.8]} 33... Nc3 {[%clk 0:01:23.2]} 34. Qf5+ {[%clk 0:00:22.4]}
34... Kg8 {[%clk 0:01:23.4]} 35. Qc8+ {[%clk 0:00:20.3]} 35... Kh7 {[%clk
0:01:23.4]} 36. Kg2 {[%clk 0:00:21.6]} 36... h3+ {[%clk 0:01:23.4]} 37. Qxh3+
{[%clk 0:00:22]} 37... Kg8 {[%clk 0:01:23.7]} 38. Qe6+ {[%clk 0:00:19.4]} 38...
Kh8 {[%clk 0:01:22.3]} 39. Qe8+ {[%clk 0:00:19.1]} 39... Kh7 {[%clk 0:01:21.7]}
40. Bd3+ {[%clk 0:00:20.6]} 40... Kh6 {[%clk 0:01:21.9]} 41. Qg6# {[%clk
0:00:21.4]} 1-0

[Event "*** Titled Tuesday 3|2 Blitz (Early)"]
[Site "Chess.com"]
[Date "2016.11.01"]
[Round "4"]
[White "Aygehovit1992"]
[Black "yurisolo"]
[Result "1-0"]
[WhiteElo "2438"]
[BlackElo "2510"]
[TimeControl "180+2"]
[EndTime "11:49:28 PDT"]
[Termination "Aygehovit1992 won by resignation"]

1. e4 {[%clk 0:03:01.9]} 1... c5 {[%clk 0:03:01.2]} 2. Nf3 {[%clk 0:03:02.8]}
2... e6 {[%clk 0:03:02.5]} 3. d4 {[%clk 0:03:04.2]} 3... cxd4 {[%clk 0:03:04.4]}
4. Nxd4 {[%clk 0:03:06.1]} 4... Nc6 {[%clk 0:03:05.5]} 5. Nc3 {[%clk 0:03:08]}
5... d6 {[%clk 0:03:06.6]} 6. g4 {[%clk 0:03:07]} 6... a6 {[%clk 0:03:05.6]} 7.
Be3 {[%clk 0:03:05.9]} 7... Bd7 {[%clk 0:03:07]} 8. Bg2 {[%clk 0:03:04.9]} 8...
Rc8 {[%clk 0:03:02.7]} 9. h4 {[%clk 0:03:05.1]} 9... b5 {[%clk 0:03:02.7]} 10.
Nxc6 {[%clk 0:03:01.8]} 10... Bxc6 {[%clk 0:03:03.4]} 11. a3 {[%clk 0:03:03.4]}
11... Be7 {[%clk 0:02:55.4]} 12. g5 {[%clk 0:02:57.4]} 12... h6 {[%clk
0:02:56.2]} 13. g6 {[%clk 0:02:54.4]} 13... fxg6 {[%clk 0:02:58.1]} 14. Qg4
{[%clk 0:02:54.1]} 14... Kf7 {[%clk 0:02:43.9]} 15. Bh3 {[%clk 0:02:54.1]} 15...
Qd7 {[%clk 0:02:40.7]} 16. Rg1 {[%clk 0:02:54.5]} 16... Bf6 {[%clk 0:02:25.2]}
17. Qxg6+ {[%clk 0:02:53.8]} 17... Kf8 {[%clk 0:02:26.6]} 18. O-O-O {[%clk
0:02:46.6]} 18... Qe8 {[%clk 0:01:20.6]} 19. Rxd6 {[%clk 0:02:42.3]} 19... Qxg6
{[%clk 0:01:18.6]} 20. Rxg6 {[%clk 0:02:44.2]} 20... Bxc3 {[%clk 0:01:16.4]} 21.
Bxe6 {[%clk 0:02:28]} 21... Bxe4 {[%clk 0:01:16.9]} 22. Bxc8 {[%clk 0:02:23.2]}
22... Bxg6 {[%clk 0:01:14]} 23. Bc5 {[%clk 0:02:17.7]} 23... Ne7 {[%clk
0:01:03.6]} 24. Rd8+ {[%clk 0:01:53.8]} 24... Be8 {[%clk 0:01:04.4]} 25. bxc3
{[%clk 0:01:44.8]} 25... Kf7 {[%clk 0:01:05.8]} 26. Bxa6 {[%clk 0:01:44.7]}
26... g5 {[%clk 0:01:02.6]} 27. Bxb5 {[%clk 0:01:30.6]} 27... gxh4 {[%clk
0:00:59.6]} 28. Bc4+ {[%clk 0:01:31.7]} 28... Kf8 {[%clk 0:00:53.2]} 29. Rd4
{[%clk 0:01:23.5]} 29... Rh7 {[%clk 0:00:32.4]} 30. Rxh4 {[%clk 0:01:24.4]}
30... Bg6 {[%clk 0:00:18.4]} 31. a4 {[%clk 0:01:22.5]} 31... Ke8 {[%clk
0:00:17.1]} 32. a5 {[%clk 0:01:23.4]} 32... Nf5 {[%clk 0:00:18.5]} 33. Re4+
{[%clk 0:01:19.7]} 33... Kd7 {[%clk 0:00:19.9]} 34. Bb5+ {[%clk 0:01:13.9]}
34... Kc7 {[%clk 0:00:18.6]} 35. Re6 {[%clk 0:01:11.4]} 35... Bf7 {[%clk
0:00:04.5]} 36. Rc6+ {[%clk 0:01:08.8]} 36... Kd8 {[%clk 0:00:05.9]} 37. Bb6+
{[%clk 0:01:04.1]} 37... Ke7 {[%clk 0:00:05.6]} 38. a6 {[%clk 0:01:05.1]} 38...
Bd5 {[%clk 0:00:07]} 39. Rc7+ {[%clk 0:01:05.7]} 1-0

[Event "*** Titled Tuesday 3|2 Blitz (Early)"]
[Site "Chess.com"]
[Date "2016.11.01"]
[Round "4"]
[White "josiwales"]
[Black "oskariot"]
[Result "1-0"]
[WhiteElo "2184"]
[BlackElo "2380"]
[TimeControl "180+2"]
[EndTime "11:49:42 PDT"]
[Termination "josiwales won by resignation"]

1. e3 {[%clk 0:03:02]} 1... c5 {[%clk 0:03:01.4]} 2. d3 {[%clk 0:03:03.9]} 2...
g6 {[%clk 0:03:02.5]} 3. Ne2 {[%clk 0:03:05.8]} 3... Bg7 {[%clk 0:03:04.1]} 4.
g3 {[%clk 0:03:07.4]} 4... Nf6 {[%clk 0:03:06]} 5. Bg2 {[%clk 0:03:09]} 5... d5
{[%clk 0:03:07.1]} 6. O-O {[%clk 0:03:10.4]} 6... O-O {[%clk 0:03:08.9]} 7. c4
{[%clk 0:03:10.8]} 7... Nc6 {[%clk 0:03:10.6]} 8. Nbc3 {[%clk 0:03:11.1]} 8...
d4 {[%clk 0:03:11.6]} 9. Ne4 {[%clk 0:03:11.6]} 9... Nxe4 {[%clk 0:03:12.8]} 10.
dxe4 {[%clk 0:03:12]} 10... dxe3 {[%clk 0:03:13.6]} 11. Bxe3 {[%clk 0:03:11.3]}
11... Ne5 {[%clk 0:03:11.9]} 12. Qc2 {[%clk 0:03:08.3]} 12... Qc7 {[%clk
0:02:56]} 13. h3 {[%clk 0:03:07.7]} 13... b6 {[%clk 0:02:54.2]} 14. f4 {[%clk
0:03:07.2]} 14... Nc6 {[%clk 0:02:55.5]} 15. Rad1 {[%clk 0:03:05.4]} 15... Bb7
{[%clk 0:02:56.9]} 16. e5 {[%clk 0:02:53.2]} 16... Nb4 {[%clk 0:02:56.4]} 17.
Qb1 {[%clk 0:02:52.1]} 17... Bxg2 {[%clk 0:02:55.3]} 18. Kxg2 {[%clk 0:02:54]}
18... Rfd8 {[%clk 0:02:56.5]} 19. a3 {[%clk 0:02:53.7]} 19... Qc6+ {[%clk
0:02:56.4]} 20. Kh2 {[%clk 0:02:52.5]} 20... Na6 {[%clk 0:02:55.2]} 21. Nc3
{[%clk 0:02:53]} 21... Nc7 {[%clk 0:02:53.8]} 22. Qe4 {[%clk 0:02:50]} 22...
Qxe4 {[%clk 0:02:52.8]} 23. Nxe4 {[%clk 0:02:51.9]} 23... Ne6 {[%clk 0:02:51.9]}
24. Rd5 {[%clk 0:02:45.1]} 24... Nc7 {[%clk 0:02:49.1]} 25. Rdd1 {[%clk
0:02:45.7]} 25... f5 {[%clk 0:02:47.3]} 26. Nc3 {[%clk 0:02:39.9]} 26... e6
{[%clk 0:02:44.4]} 27. Kg2 {[%clk 0:02:15.4]} 27... Kf7 {[%clk 0:02:42.1]} 28.
Kf3 {[%clk 0:02:16.6]} 28... Bf8 {[%clk 0:02:42.7]} 29. g4 {[%clk 0:02:11.1]}
29... Be7 {[%clk 0:02:43.6]} 30. g5 {[%clk 0:02:07.8]} 30... Ke8 {[%clk
0:02:38]} 31. h4 {[%clk 0:02:08.3]} 31... Rxd1 {[%clk 0:02:38.3]} 32. Rxd1
{[%clk 0:02:08.9]} 32... Rd8 {[%clk 0:02:39.9]} 33. Rh1 {[%clk 0:02:08.7]} 33...
Kf7 {[%clk 0:02:33.2]} 34. h5 {[%clk 0:02:09.1]} 34... Rd3 {[%clk 0:02:32]} 35.
hxg6+ {[%clk 0:02:08.1]} 35... Kxg6 {[%clk 0:02:33.2]} 36. Rh6+ {[%clk
0:02:06.1]} 36... Kg7 {[%clk 0:02:34.6]} 37. Ke2 {[%clk 0:02:07.6]} 37... Rd7
{[%clk 0:02:34.9]} 38. Nd1 {[%clk 0:02:03.3]} 38... Bf8 {[%clk 0:02:23.8]} 39.
Nf2 {[%clk 0:02:03]} 39... Kg8 {[%clk 0:02:24.7]} 40. Rh5 {[%clk 0:02:02]} 40...
Kg7 {[%clk 0:02:23.4]} 41. Nh1 {[%clk 0:02:00]} 41... Kg6 {[%clk 0:02:24.3]} 42.
Ng3 {[%clk 0:02:01.1]} 42... b5 {[%clk 0:02:20.3]} 43. b3 {[%clk 0:01:48.9]}
43... bxc4 {[%clk 0:02:20.1]} 44. bxc4 {[%clk 0:01:50.8]} 44... Na8 {[%clk
0:02:20.6]} 45. Rh1 {[%clk 0:01:50.7]} 45... Nb6 {[%clk 0:02:12.6]} 46. Nh5
{[%clk 0:01:47.7]} 46... Nxc4 {[%clk 0:02:02.3]} 47. Nf6 {[%clk 0:01:48.5]}
47... Rb7 {[%clk 0:02:03.6]} 48. Bxc5 {[%clk 0:01:42.3]} 48... Rb2+ {[%clk
0:01:55.4]} 49. Kd3 {[%clk 0:01:43]} 49... Nxe5+ {[%clk 0:01:52]} 50. Kc3 {[%clk
0:01:24.8]} 50... Bxc5 {[%clk 0:01:13.7]} 51. Rh6+ {[%clk 0:01:17.6]} 51... Kg7
{[%clk 0:01:13.1]} 52. Rxh7+ {[%clk 0:01:17.3]} 52... Kg6 {[%clk 0:01:13.2]} 53.
Rh6+ {[%clk 0:01:18.3]} 53... Kg7 {[%clk 0:01:14]} 54. Nh5+ {[%clk 0:01:08.1]}
54... Kg8 {[%clk 0:01:08.3]} 55. Kxb2 {[%clk 0:01:01.9]} 1-0

[Event "*** Titled Tuesday 3|2 Blitz (Early)"]
[Site "Chess.com"]
[Date "2016.11.01"]
[Round "4"]
[White "metalbattler"]
[Black "KingFlorida"]
[Result "1-0"]
[WhiteElo "2014"]
[BlackElo "2337"]
[TimeControl "180+2"]
[EndTime "11:49:53 PDT"]
[Termination "metalbattler won on time"]

1. e4 {[%clk 0:03:00.9]} 1... Nf6 {[%clk 0:02:55]} 2. e5 {[%clk 0:03:01.5]} 2...
Nd5 {[%clk 0:02:52.4]} 3. d4 {[%clk 0:03:02.6]} 3... d6 {[%clk 0:02:47.3]} 4. c4
{[%clk 0:03:03.9]} 4... Nb6 {[%clk 0:02:45.8]} 5. exd6 {[%clk 0:03:04.8]} 5...
cxd6 {[%clk 0:02:47.7]} 6. Nc3 {[%clk 0:03:06.1]} 6... g6 {[%clk 0:02:42.2]} 7.
Be3 {[%clk 0:03:05.1]} 7... Bg7 {[%clk 0:02:43.7]} 8. Rc1 {[%clk 0:03:06.6]}
8... O-O {[%clk 0:02:45.1]} 9. b3 {[%clk 0:03:07.7]} 9... N8d7 {[%clk
0:02:38.8]} 10. Nf3 {[%clk 0:03:07.6]} 10... Nf6 {[%clk 0:02:39.8]} 11. h3
{[%clk 0:03:02.7]} 11... d5 {[%clk 0:02:31.5]} 12. c5 {[%clk 0:03:02.2]} 12...
Nbd7 {[%clk 0:02:32.8]} 13. Bd3 {[%clk 0:03:02.3]} 13... a5 {[%clk 0:02:24.2]}
14. O-O {[%clk 0:03:01.3]} 14... Nb8 {[%clk 0:02:25.8]} 15. a3 {[%clk
0:02:57.5]} 15... Nc6 {[%clk 0:02:27.7]} 16. Rb1 {[%clk 0:02:50.7]} 16... Bf5
{[%clk 0:02:29.1]} 17. Bxf5 {[%clk 0:02:50.2]} 17... gxf5 {[%clk 0:02:31]} 18.
b4 {[%clk 0:02:49.2]} 18... axb4 {[%clk 0:02:32.9]} 19. axb4 {[%clk 0:02:50.6]}
19... Ne4 {[%clk 0:02:34.8]} 20. Qb3 {[%clk 0:02:45.8]} 20... e6 {[%clk
0:02:32.8]} 21. Ra1 {[%clk 0:02:29.5]} 21... Qf6 {[%clk 0:01:57.7]} 22. b5
{[%clk 0:02:18.7]} 22... Na5 {[%clk 0:01:37.2]} 23. Qa3 {[%clk 0:02:18.7]} 23...
Nxc3 {[%clk 0:01:09.2]} 24. Qxc3 {[%clk 0:02:18.4]} 24... Nc4 {[%clk 0:01:10.8]}
25. Rxa8 {[%clk 0:02:11.1]} 25... Rxa8 {[%clk 0:01:09.8]} 26. Ra1 {[%clk
0:02:12.6]} 26... Rc8 {[%clk 0:00:26.1]} 27. Qc1 {[%clk 0:01:41.3]} 27... Qd8
{[%clk 0:00:03.4]} 28. Bf4 {[%clk 0:01:37.7]} 28... Qd7 {[%clk 0:00:04.3]} 29.
Qb1 {[%clk 0:01:21.7]} 29... Bf6 {[%clk 0:00:03.5]} 30. Ra7 {[%clk 0:01:19.5]}
30... Bd8 {[%clk 0:00:02.4]} 31. Ne5 {[%clk 0:01:13.9]} 31... Qe8 {[%clk
0:00:03.2]} 32. Rxb7 {[%clk 0:01:08.9]} 32... Nxe5 {[%clk 0:00:02.9]} 33. Bxe5
{[%clk 0:01:10.1]} 33... Bg5 {[%clk 0:00:03.5]} 34. c6 {[%clk 0:01:07.3]} 34...
Ra8 {[%clk 0:00:04.2]} 35. c7 {[%clk 0:01:06.1]} 35... f6 {[%clk 0:00:05]} 36.
Rb8 {[%clk 0:00:57.9]} 36... fxe5 {[%clk 0:00:06.2]} 37. Rxe8+ {[%clk
0:00:57.4]} 37... Rxe8 {[%clk 0:00:08.1]} 38. b6 {[%clk 0:00:57.8]} 38... exd4
{[%clk 0:00:08.8]} 39. b7 {[%clk 0:00:58]} 39... Kf7 {[%clk 0:00:09]} 40. c8=Q
{[%clk 0:00:58.9]} 1-0